[Event "December 5 Late 2023"]
[Site "https://www.chess.com"]
[Date "2023.12.05"]
[Round "5"]
[White "Hoffmann, Asa"]
[Black "Przybylski, Wojciech"]
[Result "0-1"]
[Board "83"]
[TimeControl "180+1"]
[WhiteFideId "2001470"]
[BlackFideId "1117599"]
[WhiteElo "2414"]
[BlackElo "2550"]
[WhiteTeam "USA"]
[BlackTeam "POL"]
[WhiteClock "0:00:38"]
[BlackClock "0:00:07"]

1. d4 {[%clk 0:02:54]}  d5 {[%clk 0:02:58]} 2. Bg5 {[%clk 0:02:53]}  h6 {[%clk 0:02:55]} 3. Bh4 {[%clk 0:02:53]}  Nf6 {[%clk 0:02:55]} 4. Nd2 {[%clk 0:02:53]}  Bf5 {[%clk 0:02:54]} 5. f3 {[%clk 0:02:53]}  c6 {[%clk 0:02:53]} 6. c3 {[%clk 0:02:53]}  Nbd7 {[%clk 0:02:52]} 7. Qb3 {[%clk 0:02:52]}  Qc8 {[%clk 0:02:40]} 8. e3 {[%clk 0:02:51]}  e6 {[%clk 0:02:34]} 9. Rc1 {[%clk 0:02:47]}  b5 {[%clk 0:02:32]} 10. Be2 {[%clk 0:02:26]}  Bd6 {[%clk 0:02:30]} 11. Bg3 {[%clk 0:02:24]}  Bxg3+ {[%clk 0:02:28]} 12. hxg3 {[%clk 0:02:24]}  Qc7 {[%clk 0:02:27]} 13. Nf1 {[%clk 0:02:22]}  Nb6 {[%clk 0:02:21]} 14. Qd1 {[%clk 0:02:19]}  e5 {[%clk 0:02:16]} 15. dxe5 {[%clk 0:02:11]}  Qxe5 {[%clk 0:02:15]} 16. Qd4 {[%clk 0:02:10]}  Qe7 {[%clk 0:02:11]} 17. Bd3 {[%clk 0:02:04]}  Bxd3 {[%clk 0:02:09]} 18. Qxd3 {[%clk 0:02:04]}  Nc4 {[%clk 0:02:08]} 19. b3 {[%clk 0:02:01]}  Ne5 {[%clk 0:02:05]} 20. Qd2 {[%clk 0:01:56]}  O-O {[%clk 0:01:57]} 21. Ne2 {[%clk 0:01:55]}  c5 {[%clk 0:01:52]} 22. Nf4 {[%clk 0:01:54]}  Rad8 {[%clk 0:01:50]} 23. Kf2 {[%clk 0:01:53]}  Rfe8 {[%clk 0:01:44]} 24. Re1 {[%clk 0:01:53]}  a5 {[%clk 0:01:40]} 25. Qc2 {[%clk 0:01:49]}  b4 {[%clk 0:01:38]} 26. cxb4 {[%clk 0:01:45]}  axb4 {[%clk 0:01:38]} 27. g4 {[%clk 0:01:42]}  Ra8 {[%clk 0:01:28]} 28. Re2 {[%clk 0:01:40]}  c4 {[%clk 0:01:24]} 29. bxc4 {[%clk 0:01:35]}  dxc4 {[%clk 0:01:23]} 30. Ng3 {[%clk 0:01:35]}  Nexg4+ {[%clk 0:01:02]} 31. fxg4 {[%clk 0:01:34]}  Nxg4+ {[%clk 0:01:02]} 32. Kg1 {[%clk 0:01:32]}  Nxe3 {[%clk 0:00:53]} 33. Qc1 {[%clk 0:01:31]}  Qc5 {[%clk 0:00:49]} 34. Kh2 {[%clk 0:01:24]}  Ng4+ {[%clk 0:00:41]} 35. Kh3 {[%clk 0:01:24]}  Rxe2 {[%clk 0:00:39]} 36. Ngxe2 {[%clk 0:01:16]}  Nf2+ {[%clk 0:00:34]} 37. Kg3 {[%clk 0:01:15]}  Nxh1+ {[%clk 0:00:33]} 38. Qxh1 {[%clk 0:01:14]}  Ra3+ {[%clk 0:00:29]} 39. Kh2 {[%clk 0:01:07]}  Qe5 {[%clk 0:00:26]} 40. g3 {[%clk 0:01:04]}  Rxa2 {[%clk 0:00:24]} 41. Qf3 {[%clk 0:01:03]}  b3 {[%clk 0:00:21]} 42. Kh3 {[%clk 0:00:58]}  b2 {[%clk 0:00:13]} 43. Nc3 {[%clk 0:00:57]}  Ra3 {[%clk 0:00:13]} 44. Qe2 {[%clk 0:00:49]}  Qxe2 {[%clk 0:00:09]} 45. Nfxe2 {[%clk 0:00:49]}  Ra1 {[%clk 0:00:09]} 46. Kg4 {[%clk 0:00:48]}  b1=Q {[%clk 0:00:08]} 47. Nxb1 {[%clk 0:00:47]}  Rxb1 {[%clk 0:00:09]} 48. Nc3 {[%clk 0:00:46]}  Rb3 {[%clk 0:00:08]} 49. Ne4 {[%clk 0:00:46]}  g6 {[%clk 0:00:08]} 50. Kf4 {[%clk 0:00:46]}  Kg7 {[%clk 0:00:07]} 51. Ke5 {[%clk 0:00:46]}  Rd3 {[%clk 0:00:07]} 52. Nc5 {[%clk 0:00:45]}  Rxg3 {[%clk 0:00:07]} 53. Kd4 {[%clk 0:00:45]}  Rg4+ {[%clk 0:00:06]} 54. Kc3 {[%clk 0:00:45]}  h5 {[%clk 0:00:07]} 55. Nd7 {[%clk 0:00:43]}  f5 {[%clk 0:00:07]} 56. Ne5 {[%clk 0:00:43]}  Kh7 {[%clk 0:00:07]} 57. Nxg4 {[%clk 0:00:38]}  fxg4 {[%clk 0:00:07]} 0-1

[Event "December 5 Late 2023"]
[Site "https://www.chess.com"]
[Date "2023.12.05"]
[Round "5"]
[White "Shapiro, Viktor"]
[Black "Spichkin, Alexander"]
[Result "1-0"]
[Board "91"]
[TimeControl "180+1"]
[WhiteFideId "4175700"]
[BlackFideId "4144074"]
[WhiteElo "2519"]
[BlackElo "2388"]
[WhiteTeam "RUS"]
[BlackTeam "RUS"]
[WhiteClock "0:00:16"]
[BlackClock "0:00:10"]

1. c4 {[%clk 0:03:00]}  f5 {[%clk 0:02:58]} 2. Nc3 {[%clk 0:03:01]}  Nf6 {[%clk 0:02:59]} 3. g3 {[%clk 0:03:02]}  d6 {[%clk 0:02:59]} 4. Bg2 {[%clk 0:03:02]}  e5 {[%clk 0:03:00]} 5. d3 {[%clk 0:03:03]}  Be7 {[%clk 0:02:56]} 6. Rb1 {[%clk 0:03:02]}  O-O {[%clk 0:02:56]} 7. b4 {[%clk 0:03:02]}  Qe8 {[%clk 0:02:55]} 8. Nf3 {[%clk 0:03:01]}  Nc6 {[%clk 0:02:51]} 9. b5 {[%clk 0:03:01]}  Nd8 {[%clk 0:02:51]} 10. c5 {[%clk 0:02:59]}  Ne6 {[%clk 0:02:49]} 11. cxd6 {[%clk 0:02:58]}  cxd6 {[%clk 0:02:46]} 12. Ba3 {[%clk 0:02:58]}  f4 {[%clk 0:02:39]} 13. Qb3 {[%clk 0:02:53]}  Kh8 {[%clk 0:02:34]} 14. O-O {[%clk 0:02:49]}  Qh5 {[%clk 0:02:31]} 15. Nd5 {[%clk 0:02:39]}  Nxd5 {[%clk 0:02:23]} 16. Qxd5 {[%clk 0:02:38]}  fxg3 {[%clk 0:02:17]} 17. fxg3 {[%clk 0:02:34]}  Bd7 {[%clk 0:02:11]} 18. Qxb7 {[%clk 0:02:24]}  Rad8 {[%clk 0:02:10]} 19. Bc1 {[%clk 0:02:00]}  Nc5 {[%clk 0:02:08]} 20. Qxa7 {[%clk 0:01:51]}  Bf6 {[%clk 0:02:09]} 21. Be3 {[%clk 0:01:46]}  Be6 {[%clk 0:02:03]} 22. Nd2 {[%clk 0:01:41]}  Qxe2 {[%clk 0:01:57]} 23. Bxc5 {[%clk 0:01:38]}  dxc5 {[%clk 0:01:56]} 24. Ne4 {[%clk 0:01:38]}  Qxd3 {[%clk 0:01:51]} 25. Qxc5 {[%clk 0:01:33]}  Rc8 {[%clk 0:01:41]} 26. Qd6 {[%clk 0:01:24]}  Qxd6 {[%clk 0:01:37]} 27. Nxd6 {[%clk 0:01:24]}  Rc2 {[%clk 0:01:38]} 28. b6 {[%clk 0:01:19]}  e4 {[%clk 0:01:36]} 29. b7 {[%clk 0:01:17]}  Bd4+ {[%clk 0:01:36]} 30. Kh1 {[%clk 0:01:17]}  Rb8 {[%clk 0:01:36]} 31. Bxe4 {[%clk 0:01:13]}  Rc7 {[%clk 0:01:31]} 32. a4 {[%clk 0:01:11]}  g6 {[%clk 0:01:22]} 33. Nb5 {[%clk 0:01:09]}  Rd7 {[%clk 0:01:18]} 34. Rbd1 {[%clk 0:01:03]}  Bc4 {[%clk 0:01:11]} 35. Rfe1 {[%clk 0:00:43]}  Bxb5 {[%clk 0:01:10]} 36. axb5 {[%clk 0:00:43]}  Kg7 {[%clk 0:01:07]} 37. Bc6 {[%clk 0:00:42]}  Rdd8 {[%clk 0:01:03]} 38. Re4 {[%clk 0:00:41]}  Bf6 {[%clk 0:00:58]} 39. Rxd8 {[%clk 0:00:40]}  Rxd8 {[%clk 0:00:57]} 40. Ra4 {[%clk 0:00:37]}  Be5 {[%clk 0:00:55]} 41. Kg2 {[%clk 0:00:36]}  Kf6 {[%clk 0:00:55]} 42. Kf3 {[%clk 0:00:35]}  Bb8 {[%clk 0:00:54]} 43. Ra8 {[%clk 0:00:33]}  Ke5 {[%clk 0:00:53]} 44. h3 {[%clk 0:00:31]}  h5 {[%clk 0:00:51]} 45. g4 {[%clk 0:00:31]}  h4 {[%clk 0:00:51]} 46. Ra4 {[%clk 0:00:30]}  Rf8+ {[%clk 0:00:51]} 47. Ke2 {[%clk 0:00:30]}  Kd6 {[%clk 0:00:49]} 48. Re4 {[%clk 0:00:29]}  Kc5 {[%clk 0:00:47]} 49. Re6 {[%clk 0:00:29]}  g5 {[%clk 0:00:47]} 50. Rg6 {[%clk 0:00:26]}  Bf4 {[%clk 0:00:47]} 51. Kd3 {[%clk 0:00:24]}  Kb6 {[%clk 0:00:46]} 52. Ke4 {[%clk 0:00:24]}  Kc7 {[%clk 0:00:46]} 53. Kd5 {[%clk 0:00:23]}  Rd8+ {[%clk 0:00:46]} 54. Ke4 {[%clk 0:00:20]}  Rf8 {[%clk 0:00:43]} 55. Bd5 {[%clk 0:00:20]}  Kb8 {[%clk 0:00:41]} 56. Ra6 {[%clk 0:00:19]}  Kc7 {[%clk 0:00:38]} 57. b6+ {[%clk 0:00:17]}  Kd7 {[%clk 0:00:37]} 58. Ra8 {[%clk 0:00:17]}  Bb8 {[%clk 0:00:36]} 59. Ra4 {[%clk 0:00:17]}  Kd6 {[%clk 0:00:36]} 60. Ra5 {[%clk 0:00:16]}  Rf4+ {[%clk 0:00:35]} 61. Ke3 {[%clk 0:00:16]}  Rf8 {[%clk 0:00:29]} 62. Bf3 {[%clk 0:00:16]}  Re8+ {[%clk 0:00:27]} 63. Kd3 {[%clk 0:00:16]}  Rg8 {[%clk 0:00:26]} 64. Kc4 {[%clk 0:00:15]}  Rf8 {[%clk 0:00:24]} 65. Rf5 {[%clk 0:00:14]}  Rg8 {[%clk 0:00:22]} 66. Bd5 {[%clk 0:00:14]}  Ke7 {[%clk 0:00:18]} 67. Bxg8 {[%clk 0:00:13]}  Bd6 {[%clk 0:00:18]} 68. Rxg5 {[%clk 0:00:13]}  Kf6 {[%clk 0:00:18]} 69. Rf5+ {[%clk 0:00:13]}  Kg6 {[%clk 0:00:18]} 70. Kd5 {[%clk 0:00:13]}  Bg3 {[%clk 0:00:18]} 71. Kc6 {[%clk 0:00:14]}  Kg7 {[%clk 0:00:16]} 72. Be6 {[%clk 0:00:13]}  Bh2 {[%clk 0:00:16]} 73. Kd7 {[%clk 0:00:14]}  Bf4 {[%clk 0:00:16]} 74. Kc8 {[%clk 0:00:14]}  Bg3 {[%clk 0:00:16]} 75. Bd7 {[%clk 0:00:15]}  Bb8 {[%clk 0:00:16]} 76. Rc5 {[%clk 0:00:15]}  Bd6 {[%clk 0:00:12]} 77. Rc7 {[%clk 0:00:16]}  Bc5 {[%clk 0:00:12]} 78. b8=Q {[%clk 0:00:16]}  Bxb6 {[%clk 0:00:10]} 79. Qxb6 {[%clk 0:00:16]} 1-0

[Event "December 5 Late 2023"]
[Site "https://www.chess.com"]
[Date "2023.12.05"]
[Round "5"]
[White "YurasovMat-2012"]
[Black "Pasti, Aron"]
[Result "0-1"]
[Board "94"]
[TimeControl "180+1"]
[BlackFideId "785857"]
[WhiteElo "2386"]
[BlackElo "2511"]
[BlackTeam "HUN"]
[WhiteClock "0:00:00"]
[BlackClock "0:00:05"]

1. e4 {[%clk 0:03:00]}  c5 {[%clk 0:02:59]} 2. Nf3 {[%clk 0:02:52]}  e6 {[%clk 0:02:58]} 3. d3 {[%clk 0:02:52]}  Nc6 {[%clk 0:02:58]} 4. Nbd2 {[%clk 0:02:51]}  g6 {[%clk 0:02:57]} 5. g3 {[%clk 0:02:50]}  Bg7 {[%clk 0:02:58]} 6. Bg2 {[%clk 0:02:45]}  Nge7 {[%clk 0:02:57]} 7. O-O {[%clk 0:02:44]}  O-O {[%clk 0:02:48]} 8. c3 {[%clk 0:02:44]}  d5 {[%clk 0:02:42]} 9. Qe2 {[%clk 0:02:43]}  b6 {[%clk 0:02:41]} 10. Rd1 {[%clk 0:02:40]}  a5 {[%clk 0:02:40]} 11. Nf1 {[%clk 0:02:37]}  Ba6 {[%clk 0:02:40]} 12. Qc2 {[%clk 0:02:37]}  Rc8 {[%clk 0:02:38]} 13. Ne3 {[%clk 0:02:33]}  d4 {[%clk 0:02:35]} 14. Nf1 {[%clk 0:02:33]}  dxc3 {[%clk 0:02:28]} 15. bxc3 {[%clk 0:02:32]}  Nb4 {[%clk 0:02:29]} 16. cxb4 {[%clk 0:02:30]}  Bxa1 {[%clk 0:02:24]} 17. b5 {[%clk 0:02:29]}  Bb7 {[%clk 0:01:55]} 18. Bf4 {[%clk 0:02:24]}  Bg7 {[%clk 0:01:54]} 19. Ne3 {[%clk 0:02:09]}  Qd7 {[%clk 0:01:51]} 20. Nc4 {[%clk 0:02:07]}  Rcd8 {[%clk 0:01:20]} 21. Nxb6 {[%clk 0:01:44]}  Qxb5 {[%clk 0:01:19]} 22. Rb1 {[%clk 0:01:39]}  Qxd3 {[%clk 0:01:18]} 23. Qc1 {[%clk 0:01:33]}  Bxe4 {[%clk 0:01:13]} 24. Nd2 {[%clk 0:01:28]}  Bxg2 {[%clk 0:01:12]} 25. Kxg2 {[%clk 0:01:29]}  Nd5 {[%clk 0:00:38]} 26. Bg5 {[%clk 0:01:24]}  Nxb6 {[%clk 0:00:34]} 27. Rxb6 {[%clk 0:01:11]}  Qd5+ {[%clk 0:00:34]} 28. Nf3 {[%clk 0:01:10]}  Rb8 {[%clk 0:00:29]} 29. Ra6 {[%clk 0:01:06]}  Ra8 {[%clk 0:00:30]} 30. Qf1 {[%clk 0:00:52]}  c4 {[%clk 0:00:29]} 31. Rb6 {[%clk 0:00:45]}  Rfb8 {[%clk 0:00:28]} 32. Qb1 {[%clk 0:00:41]}  Rxb6 {[%clk 0:00:25]} 33. Qxb6 {[%clk 0:00:41]}  Rc8 {[%clk 0:00:20]} 34. Qa6 {[%clk 0:00:33]}  Qc6 {[%clk 0:00:20]} 35. Qxa5 {[%clk 0:00:31]}  c3 {[%clk 0:00:21]} 36. Qa3 {[%clk 0:00:29]}  c2 {[%clk 0:00:20]} 37. Qc1 {[%clk 0:00:26]}  h6 {[%clk 0:00:17]} 38. Be3 {[%clk 0:00:14]}  Rb8 {[%clk 0:00:16]} 39. Qa3 {[%clk 0:00:09]}  Rb1 {[%clk 0:00:13]} 40. Bc1 {[%clk 0:00:07]}  Bf8 {[%clk 0:00:10]} 41. Qe3 {[%clk 0:00:05]}  Qd5 {[%clk 0:00:10]} 42. Bd2 {[%clk 0:00:02]}  Rd1 {[%clk 0:00:09]} 43. Bc1 {[%clk 0:00:01]}  Rd3 {[%clk 0:00:09]} 44. Qf4 {[%clk 0:00:01]}  Ba3 {[%clk 0:00:08]} 45. Qb8+ {[%clk 0:00:00]}  Kh7 {[%clk 0:00:05]} 0-1

[Event "December 5 Late 2023"]
[Site "https://www.chess.com"]
[Date "2023.12.05"]
[Round "5"]
[White "Bayo Milagro, Alvaro"]
[Black "Akhayan, Ruben"]
[Result "1-0"]
[Board "95"]
[TimeControl "180+1"]
[WhiteFideId "22275240"]
[BlackFideId "204439"]
[WhiteElo "2510"]
[BlackElo "2384"]
[WhiteTeam "ESP"]
[BlackTeam "BEL"]
[WhiteClock "0:00:11"]
[BlackClock "0:00:12"]

1. e4 {[%clk 0:02:57]}  e5 {[%clk 0:02:59]} 2. Nc3 {[%clk 0:02:56]}  Nf6 {[%clk 0:02:59]} 3. g3 {[%clk 0:02:56]}  Nxe4 {[%clk 0:02:31]} 4. Nxe4 {[%clk 0:02:55]}  d5 {[%clk 0:02:31]} 5. Nc3 {[%clk 0:02:54]}  d4 {[%clk 0:02:31]} 6. Nce2 {[%clk 0:02:47]}  Qd5 {[%clk 0:02:23]} 7. f3 {[%clk 0:02:44]}  Nc6 {[%clk 0:02:17]} 8. d3 {[%clk 0:02:43]}  Bb4+ {[%clk 0:02:11]} 9. Bd2 {[%clk 0:02:41]}  Bxd2+ {[%clk 0:02:07]} 10. Qxd2 {[%clk 0:02:42]}  O-O {[%clk 0:02:07]} 11. Bg2 {[%clk 0:02:37]}  Bf5 {[%clk 0:01:58]} 12. g4 {[%clk 0:02:32]}  Bg6 {[%clk 0:01:57]} 13. Ng3 {[%clk 0:02:29]}  Kh8 {[%clk 0:01:52]} 14. f4 {[%clk 0:02:24]}  Qb5 {[%clk 0:01:42]} 15. f5 {[%clk 0:02:22]}  Qxb2 {[%clk 0:01:41]} 16. Qc1 {[%clk 0:01:57]}  Qc3+ {[%clk 0:01:38]} 17. Kd1 {[%clk 0:01:57]}  Nb4 {[%clk 0:01:18]} 18. a3 {[%clk 0:01:22]}  Nxd3 {[%clk 0:01:13]} 19. cxd3 {[%clk 0:01:21]}  Qxd3+ {[%clk 0:01:13]} 20. Qd2 {[%clk 0:01:14]}  Qb3+ {[%clk 0:01:11]} 21. Qc2 {[%clk 0:01:12]}  Qe3 {[%clk 0:01:03]} 22. Be4 {[%clk 0:00:58]}  d3 {[%clk 0:00:57]} 23. Qd2 {[%clk 0:00:53]}  Qd4 {[%clk 0:00:54]} 24. Rc1 {[%clk 0:00:49]}  Rad8 {[%clk 0:00:51]} 25. Nf3 {[%clk 0:00:48]}  Qa4+ {[%clk 0:00:50]} 26. Ke1 {[%clk 0:00:48]}  Qxa3 {[%clk 0:00:42]} 27. Kf2 {[%clk 0:00:46]}  Qa4 {[%clk 0:00:40]} 28. h4 {[%clk 0:00:40]}  f6 {[%clk 0:00:34]} 29. fxg6 {[%clk 0:00:39]}  hxg6 {[%clk 0:00:31]} 30. Rxc7 {[%clk 0:00:32]}  f5 {[%clk 0:00:30]} 31. gxf5 {[%clk 0:00:31]}  gxf5 {[%clk 0:00:31]} 32. Qg5 {[%clk 0:00:22]}  Qa2+ {[%clk 0:00:25]} 33. Kg1 {[%clk 0:00:18]}  Qg8 {[%clk 0:00:18]} 34. Qh5+ {[%clk 0:00:16]}  Qh7 {[%clk 0:00:19]} 35. Qxh7+ {[%clk 0:00:16]}  Kxh7 {[%clk 0:00:20]} 36. Bxf5+ {[%clk 0:00:16]}  Kh8 {[%clk 0:00:20]} 37. Kf2 {[%clk 0:00:14]}  d2 {[%clk 0:00:18]} 38. Rd1 {[%clk 0:00:14]}  e4 {[%clk 0:00:16]} 39. Bxe4 {[%clk 0:00:13]}  Rf6 {[%clk 0:00:16]} 40. Ke3 {[%clk 0:00:11]}  Rfd6 {[%clk 0:00:12]} 41. Rxd2 {[%clk 0:00:11]} 1-0

[Event "December 5 Late 2023"]
[Site "https://www.chess.com"]
[Date "2023.12.05"]
[Round "5"]
[White "Marcziter, Dmitrii"]
[Black "Rees, Ioan"]
[Result "1-0"]
[Board "96"]
[TimeControl "180+1"]
[WhiteFideId "13900765"]
[BlackFideId "1801236"]
[WhiteElo "2384"]
[BlackElo "2508"]
[WhiteTeam "GER"]
[BlackTeam "WLS"]
[WhiteClock "0:00:11"]
[BlackClock "0:00:19"]

1. d4 {[%clk 0:03:00]}  d5 {[%clk 0:02:59]} 2. c4 {[%clk 0:03:00]}  e6 {[%clk 0:02:59]} 3. Nc3 {[%clk 0:03:00]}  Nf6 {[%clk 0:02:57]} 4. Bg5 {[%clk 0:02:59]}  Nbd7 {[%clk 0:02:57]} 5. cxd5 {[%clk 0:02:59]}  exd5 {[%clk 0:02:57]} 6. e3 {[%clk 0:02:58]}  c6 {[%clk 0:02:55]} 7. Qc2 {[%clk 0:02:58]}  Be7 {[%clk 0:02:55]} 8. Bd3 {[%clk 0:02:58]}  Nh5 {[%clk 0:02:55]} 9. Bxe7 {[%clk 0:02:54]}  Qxe7 {[%clk 0:02:56]} 10. Nge2 {[%clk 0:02:54]}  g6 {[%clk 0:02:54]} 11. O-O-O {[%clk 0:02:52]}  Nb6 {[%clk 0:02:51]} 12. Kb1 {[%clk 0:02:51]}  Bd7 {[%clk 0:02:51]} 13. Rc1 {[%clk 0:02:51]}  O-O-O {[%clk 0:02:48]} 14. a4 {[%clk 0:02:49]}  Kb8 {[%clk 0:02:44]} 15. a5 {[%clk 0:02:49]}  Nc8 {[%clk 0:02:37]} 16. Qb3 {[%clk 0:02:44]}  Nd6 {[%clk 0:02:32]} 17. Na4 {[%clk 0:02:37]}  Ka8 {[%clk 0:02:26]} 18. Nc5 {[%clk 0:02:31]}  Bc8 {[%clk 0:02:26]} 19. Nc3 {[%clk 0:02:23]}  Ng7 {[%clk 0:02:25]} 20. Ka1 {[%clk 0:02:19]}  Ne6 {[%clk 0:02:25]} 21. N3a4 {[%clk 0:02:17]}  Nxc5 {[%clk 0:02:22]} 22. Nxc5 {[%clk 0:02:16]}  h5 {[%clk 0:02:19]} 23. Rc2 {[%clk 0:02:11]}  h4 {[%clk 0:02:18]} 24. h3 {[%clk 0:02:11]}  Bf5 {[%clk 0:02:11]} 25. Bxf5 {[%clk 0:02:08]}  gxf5 {[%clk 0:02:12]} 26. a6 {[%clk 0:01:59]}  b6 {[%clk 0:02:07]} 27. Nd3 {[%clk 0:01:59]}  Nc4 {[%clk 0:02:03]} 28. Rhc1 {[%clk 0:01:47]}  Rhg8 {[%clk 0:02:01]} 29. Ne5 {[%clk 0:01:44]}  Nxe5 {[%clk 0:01:53]} 30. dxe5 {[%clk 0:01:44]}  c5 {[%clk 0:01:53]} 31. f4 {[%clk 0:01:39]}  f6 {[%clk 0:01:50]} 32. Rd2 {[%clk 0:01:30]}  fxe5 {[%clk 0:01:42]} 33. Rxd5 {[%clk 0:01:28]}  Rxg2 {[%clk 0:01:31]} 34. Rcd1 {[%clk 0:01:22]}  Rgg8 {[%clk 0:01:23]} 35. Rxe5 {[%clk 0:01:16]}  Qc7 {[%clk 0:01:13]} 36. Red5 {[%clk 0:01:09]}  Qc8 {[%clk 0:00:47]} 37. Qd3 {[%clk 0:00:56]}  Rde8 {[%clk 0:00:41]} 38. Kb1 {[%clk 0:00:42]}  Qc6 {[%clk 0:00:40]} 39. Rd8+ {[%clk 0:00:23]}  Rxd8 {[%clk 0:00:41]} 40. Qxd8+ {[%clk 0:00:22]}  Qc8 {[%clk 0:00:42]} 41. Qd5+ {[%clk 0:00:20]}  Kb8 {[%clk 0:00:42]} 42. e4 {[%clk 0:00:17]}  fxe4 {[%clk 0:00:34]} 43. Qxe4 {[%clk 0:00:17]}  Rf8 {[%clk 0:00:35]} 44. Qe5+ {[%clk 0:00:17]}  Qc7 {[%clk 0:00:34]} 45. Rd6 {[%clk 0:00:17]}  Rg8 {[%clk 0:00:24]} 46. f5 {[%clk 0:00:14]}  Rg1+ {[%clk 0:00:21]} 47. Ka2 {[%clk 0:00:14]}  Qf7+ {[%clk 0:00:21]} 48. b3 {[%clk 0:00:11]}  Rg2+ {[%clk 0:00:21]} 49. Ka3 {[%clk 0:00:11]}  Qc7 {[%clk 0:00:19]} 50. Rd8# {[%clk 0:00:11]} 1-0

[Event "December 5 Late 2023"]
[Site "https://www.chess.com"]
[Date "2023.12.05"]
[Round "5"]
[White "Kostiukov, Alexandr"]
[Black "Calin, Alexandru"]
[Result "0-1"]
[Board "97"]
[TimeControl "180+1"]
[WhiteFideId "14108100"]
[BlackFideId "1222961"]
[WhiteElo "2373"]
[BlackElo "2508"]
[WhiteTeam "UKR"]
[BlackTeam "ROU"]
[WhiteClock "0:00:30"]
[BlackClock "0:00:30"]

1. g3 {[%clk 0:02:54]}  d5 {[%clk 0:02:52]} 2. Bg2 {[%clk 0:02:52]}  e5 {[%clk 0:02:52]} 3. c4 {[%clk 0:02:51]}  dxc4 {[%clk 0:02:41]} 4. Qa4+ {[%clk 0:02:50]}  Bd7 {[%clk 0:02:22]} 5. Qxc4 {[%clk 0:02:49]}  Nc6 {[%clk 0:02:23]} 6. Nf3 {[%clk 0:02:49]}  Nf6 {[%clk 0:02:22]} 7. O-O {[%clk 0:02:46]}  Bd6 {[%clk 0:02:16]} 8. Nc3 {[%clk 0:02:45]}  O-O {[%clk 0:02:00]} 9. d3 {[%clk 0:02:44]}  a6 {[%clk 0:01:58]} 10. Bg5 {[%clk 0:02:40]}  h6 {[%clk 0:01:58]} 11. Bxf6 {[%clk 0:02:39]}  Qxf6 {[%clk 0:01:59]} 12. Ne4 {[%clk 0:02:31]}  Qe7 {[%clk 0:01:55]} 13. a3 {[%clk 0:02:28]}  Be6 {[%clk 0:01:43]} 14. Qc2 {[%clk 0:02:26]}  Na5 {[%clk 0:01:43]} 15. b4 {[%clk 0:02:23]}  Nc6 {[%clk 0:01:35]} 16. Rfc1 {[%clk 0:02:20]}  f5 {[%clk 0:01:35]} 17. Nc5 {[%clk 0:02:19]}  Bxc5 {[%clk 0:01:34]} 18. Qxc5 {[%clk 0:02:18]}  Qf6 {[%clk 0:01:29]} 19. b5 {[%clk 0:02:14]}  axb5 {[%clk 0:01:28]} 20. Qxb5 {[%clk 0:02:14]}  e4 {[%clk 0:01:26]} 21. Ne1 {[%clk 0:01:33]}  Nd4 {[%clk 0:01:21]} 22. Qxb7 {[%clk 0:01:28]}  Nxe2+ {[%clk 0:01:21]} 23. Kh1 {[%clk 0:01:28]}  Nxc1 {[%clk 0:01:21]} 24. Rxc1 {[%clk 0:01:29]}  Rab8 {[%clk 0:01:19]} 25. Qxc7 {[%clk 0:01:17]}  Rbc8 {[%clk 0:01:16]} 26. Qf4 {[%clk 0:01:17]}  Rxc1 {[%clk 0:01:13]} 27. Qxc1 {[%clk 0:01:18]}  Rc8 {[%clk 0:01:13]} 28. Qe3 {[%clk 0:01:16]}  Qa1 {[%clk 0:00:57]} 29. Kg1 {[%clk 0:01:03]}  Qxa3 {[%clk 0:00:54]} 30. dxe4 {[%clk 0:00:57]}  Qa1 {[%clk 0:00:36]} 31. exf5 {[%clk 0:00:50]}  Bf7 {[%clk 0:00:36]} 32. f4 {[%clk 0:00:44]}  Re8 {[%clk 0:00:35]} 33. Be4 {[%clk 0:00:30]}  Qa4 {[%clk 0:00:30]} 0-1

[Event "December 5 Late 2023"]
[Site "https://www.chess.com"]
[Date "2023.12.05"]
[Round "5"]
[White "Kovalevsky, Stanislav"]
[Black "Skibbe, Willi"]
[Result "1-0"]
[Board "99"]
[TimeControl "180+1"]
[WhiteFideId "13508598"]
[BlackFideId "4682190"]
[WhiteElo "2501"]
[BlackElo "2314"]
[WhiteTeam "FID"]
[BlackTeam "GER"]
[WhiteClock "0:01:53"]
[BlackClock "0:00:00"]

1. e4 {[%clk 0:03:00]}  e6 {[%clk 0:02:57]} 2. c4 {[%clk 0:03:00]}  d5 {[%clk 0:02:55]} 3. cxd5 {[%clk 0:03:01]}  exd5 {[%clk 0:02:56]} 4. exd5 {[%clk 0:03:02]}  Nf6 {[%clk 0:02:56]} 5. Bb5+ {[%clk 0:03:02]}  Nbd7 {[%clk 0:02:53]} 6. Nc3 {[%clk 0:03:01]}  Bd6 {[%clk 0:02:52]} 7. Nf3 {[%clk 0:02:58]}  O-O {[%clk 0:02:52]} 8. O-O {[%clk 0:02:58]}  a6 {[%clk 0:02:52]} 9. Ba4 {[%clk 0:02:51]}  b5 {[%clk 0:02:52]} 10. Bc2 {[%clk 0:02:51]}  Bb7 {[%clk 0:02:52]} 11. d4 {[%clk 0:02:46]}  h6 {[%clk 0:02:48]} 12. Qd3 {[%clk 0:02:30]}  Nb6 {[%clk 0:02:39]} 13. Ne4 {[%clk 0:02:25]}  Nxe4 {[%clk 0:02:33]} 14. Qxe4 {[%clk 0:02:24]}  f5 {[%clk 0:02:31]} 15. Qe6+ {[%clk 0:02:18]}  Kh8 {[%clk 0:02:29]} 16. Bxf5 {[%clk 0:02:07]}  Qd7 {[%clk 0:02:25]} 17. Qxd7 {[%clk 0:02:07]}  Nxd7 {[%clk 0:01:06]} 18. Bxd7 {[%clk 0:02:07]}  Bxd5 {[%clk 0:01:05]} 19. Ne5 {[%clk 0:02:04]}  Kh7 {[%clk 0:00:57]} 20. Bc6 {[%clk 0:01:59]}  Bxc6 {[%clk 0:00:32]} 21. Nxc6 {[%clk 0:02:00]}  Rf6 {[%clk 0:00:33]} 22. Ne5 {[%clk 0:01:55]}  Bxe5 {[%clk 0:00:32]} 23. dxe5 {[%clk 0:01:55]}  Re6 {[%clk 0:00:33]} 24. f4 {[%clk 0:01:55]}  Rd8 {[%clk 0:00:34]} 25. Be3 {[%clk 0:01:54]}  Rc6 {[%clk 0:00:35]} 26. Rac1 {[%clk 0:01:53]}  Re8 {[%clk 0:00:36]} 27. Rxc6 {[%clk 0:01:53]}  Re7 {[%clk 0:00:36]} 28. Bc5 {[%clk 0:01:52]}  Rxe5 {[%clk 0:00:00]} 29. fxe5 {[%clk 0:01:53]} 1-0

[Event "December 5 Late 2023"]
[Site "https://www.chess.com"]
[Date "2023.12.05"]
[Round "5"]
[White "Polanco Nunez, Yoel Estarling"]
[Black "Mazurkiewicz, Michal"]
[Result "0-1"]
[Board "100"]
[TimeControl "180+1"]
[WhiteFideId "6401783"]
[BlackFideId "1124943"]
[WhiteElo "2289"]
[BlackElo "2500"]
[WhiteTeam "DOM"]
[BlackTeam "POL"]
[WhiteClock "0:00:00"]
[BlackClock "0:01:05"]

1. d4 {[%clk 0:03:00]}  Nf6 {[%clk 0:02:59]} 2. c4 {[%clk 0:03:00]}  e5 {[%clk 0:02:59]} 3. dxe5 {[%clk 0:03:00]}  Ng4 {[%clk 0:02:59]} 4. e3 {[%clk 0:03:00]}  Nxe5 {[%clk 0:02:59]} 5. Nh3 {[%clk 0:03:01]}  d5 {[%clk 0:03:00]} 6. Qxd5 {[%clk 0:02:57]}  Qe7 {[%clk 0:03:00]} 7. Nf4 {[%clk 0:02:48]}  c6 {[%clk 0:02:49]} 8. Qd1 {[%clk 0:02:35]}  Bf5 {[%clk 0:02:49]} 9. Nc3 {[%clk 0:02:23]}  Na6 {[%clk 0:02:45]} 10. e4 {[%clk 0:02:02]}  g5 {[%clk 0:02:35]} 11. Nd3 {[%clk 0:00:59]}  O-O-O {[%clk 0:02:10]} 12. Be3 {[%clk 0:00:40]}  Nxd3+ {[%clk 0:01:34]} 13. Bxd3 {[%clk 0:00:38]}  Nb4 {[%clk 0:01:34]} 14. exf5 {[%clk 0:00:06]}  Nxd3+ {[%clk 0:01:34]} 15. Ke2 {[%clk 0:00:07]}  Nxf2 {[%clk 0:01:23]} 16. Qxd8+ {[%clk 0:00:04]}  Qxd8 {[%clk 0:01:23]} 17. Kxf2 {[%clk 0:00:00]}  Qa5 {[%clk 0:01:05]} 0-1